fUSD/lending_fUSD_20250607
["ID","MTS","AMOUNT","RATE_DAILY","PERIOD"]
[364838093,1749267070202,-1648.23,0.00027561,5]
[364838094,1749267070211,-607.29,0.00027561,5]
[364838095,1749267070221,-620.28,0.00027561,5]
[364838097,1749267070230,-480.0,0.00027561,5]
[364838098,1749267070241,-769.25,0.00027561,5]
[364838099,1749267070250,-151.0,0.00027561,7]
[364838101,1749267070260,-152.91659,0.00027561,7]
[364838102,1749267070269,-2181.17,0.00027561,5]
[364838104,1749267070279,-480.0,0.00027561,5]
[364838105,1749267070288,-480.0,0.00027561,5]
[364838106,1749267070298,-1412.46,0.00027561,5]
[364838108,1749267070307,-229.668718,0.00027561,7]
[364838109,1749267070317,-229.668718,0.00027561,7]
[364838110,1749267070326,-484.13160525,0.00027561,5]
[364838112,1749267070336,-593.81,0.00027561,5]
[364838113,1749267070345,-229.668718,0.00027561,7]
[364838115,1749267070356,-229.668718,0.00027561,7]
[364838116,1749267070365,-504.56,0.00027561,5]
[364838117,1749267070374,-5750.84,0.00027561,5]
[364838119,1749267070384,-480.0,0.00027561,5]
[364838120,1749267070393,-480.0,0.00027561,5]
[364838121,1749267070402,-480.0,0.00027561,5]
[364838122,1749267070411,-480.0,0.00027561,5]
[364838123,1749267070421,-480.0,0.00027561,5]
[364838124,1749267070430,-301.576605,0.00027561,7]
[364838125,1749267070440,-156.451283,0.00027561,7]
[364838126,1749267070449,-429.296062,0.00027561,7]
[364838127,1749267070458,-1267.21,0.00027561,5]
[364838128,1749267070468,-429.296062,0.00027561,7]
[364838129,1749267070477,-10955.06,0.00027561,5]
[364838130,1749267070487,-480.0,0.00027561,5]
[364838131,1749267070496,-301.576605,0.00027561,7]
[364838132,1749267070506,-480.0,0.00027561,5]
[364838133,1749267070515,-480.0,0.00027561,5]
[364838134,1749267070525,-480.0,0.00027561,5]
[364838135,1749267070534,-429.296062,0.00027561,7]
[364838136,1749267070544,-429.296062,0.00027561,7]
[364838137,1749267070553,-480.0,0.00027561,5]
[364838138,1749267070562,-480.0,0.00027561,5]
[364838139,1749267070572,-480.0,0.00027561,5]
[364838140,1749267070582,-480.0,0.00027561,5]
[364838141,1749267070591,-7087.11,0.00027561,5]
[364838142,1749267070601,-41027.68,0.00027561,5]
[364838143,1749267070610,-2433.15,0.00027561,5]
[364838144,1749267070619,-480.0,0.00027561,5]
[364838145,1749267070628,-480.0,0.00027561,5]
[364838146,1749267070637,-480.0,0.00027561,5]
[364838147,1749267070647,-480.0,0.00027561,5]
[364838148,1749267070656,-480.0,0.00027561,5]
[364838149,1749267070665,-7622.05,0.00027561,5]
[364838150,1749267070675,-835.03,0.00027561,5]
[364838151,1749267070686,-480.0,0.00027561,5]
[364838152,1749267070698,-480.0,0.00027561,5]
[364838153,1749267070708,-480.0,0.00027561,5]
[364838154,1749267070719,-3297.59,0.00027561,5]
[364838155,1749267070729,-2182.78,0.00027561,5]
[364838156,1749267070739,-480.0,0.00027561,5]
[364838157,1749267070748,-1072.0,0.00027561,5]
[364838158,1749267070758,-480.0,0.00027561,5]
[364838159,1749267070769,-480.0,0.00027561,5]
[364838160,1749267070779,-3803.92,0.00027561,5]
[364838161,1749267070790,-480.0,0.00027561,5]
[364838162,1749267070799,-480.0,0.00027561,5]
[364838163,1749267070810,-607.41,0.00027561,5]
[364838164,1749267070819,-675.89,0.00027561,5]
[364838165,1749267070830,-1367.55,0.00027561,5]
[364838166,1749267070839,-1039.63,0.00027561,5]
[364838167,1749267070849,-480.0,0.00027561,5]
[364838168,1749267070859,-480.0,0.00027561,5]
[364838169,1749267070869,-2010.42,0.00027561,5]
[364838170,1749267070879,-1045.76,0.00027561,5]
[364838171,1749267070888,-1111.08,0.00027561,5]
[364838172,1749267070898,-151.0,0.00027561,7]
[364838173,1749267070907,-480.0,0.00027561,5]
[364838174,1749267070917,-151.0,0.00027561,7]
[364838175,1749267070927,-480.0,0.00027561,5]
[364838176,1749267070937,-596.48,0.00027561,5]
[364838177,1749267070947,-769.38,0.00027561,5]
[364838178,1749267070957,-480.0,0.00027561,5]
[364838179,1749267070967,-480.0,0.00027561,5]
[364838180,1749267070976,-151.794861,0.00027561,7]
[364838181,1749267070987,-480.0,0.00027561,5]
[364838182,1749267070999,-300.0,0.00027561,5]
[364838183,1749267071008,-480.0,0.00027561,5]
[364838184,1749267071018,-1666.49,0.00027561,5]
[364838185,1749267071027,-480.0,0.00027561,5]
[364838186,1749267071038,-493.01108362,0.00027561,5]
[364838187,1749267071050,-480.0,0.00027561,5]
[364838188,1749267071059,-480.0,0.00027561,5]
[364838189,1749267071070,-1861.6,0.00027561,2]
[364838190,1749267071082,-480.0,0.00027561,5]
[364838191,1749267071092,-480.0,0.00027561,5]
[364838192,1749267071102,-3481.74,0.00027561,5]
[364838193,1749267071113,-1287.03,0.00027561,5]
[364838194,1749267071123,-216.41842662,0.00027561,2]
[364838195,1749267071134,-1278.11,0.00027561,5]
[364838196,1749267071144,-480.0,0.00027561,5]
[364838197,1749267071154,-1788.9,0.00027561,5]
[364838198,1749267071165,-151.0,0.00027561,7]
[364838199,1749267071175,-499.54,0.00027561,5]
[364838200,1749267071184,-151.0,0.00027561,7]
[364838201,1749267071194,-480.0,0.00027561,5]
[364838202,1749267071204,-480.0,0.00027561,5]
[364838203,1749267071215,-480.0,0.00027561,5]
[364838204,1749267071225,-1256.95,0.00027561,5]
[364838205,1749267071236,-480.0,0.00027561,5]
[364838206,1749267071245,-480.0,0.00027561,5]
[364838207,1749267071254,-1671.91,0.00027561,5]
[364838208,1749267071263,-480.0,0.00027561,5]
[364838209,1749267071276,-151.0,0.00027561,7]
[364838210,1749267071286,-314.10546892,0.00027561,5]
[364838211,1749267071295,-859.96,0.00027561,5]
[364838212,1749267071305,-151.0,0.00027561,7]
[364838213,1749267071315,-11876.34,0.00027561,5]
[364838214,1749267071324,-496.73570632,0.00027561,5]
[364838215,1749267071334,-5767.87,0.00027561,5]
[364838216,1749267071344,-480.0,0.00027561,5]
[364838217,1749267071353,-480.0,0.00027561,5]
[364838218,1749267071363,-3035.15,0.00027561,5]
[364838219,1749267071373,-755.58,0.00027561,5]
[364838220,1749267071382,-480.0,0.00027561,5]
[364838221,1749267071391,-482.96911543,0.00027561,5]
[364838222,1749267071401,-1813.84,0.00027561,5]
[364838223,1749267071410,-1581.96,0.00027561,5]
[364838224,1749267071420,-480.0,0.00027561,5]
[364838225,1749267071430,-2521.31,0.00027561,5]
[364838226,1749267071440,-1345.91,0.00027561,5]
[364838227,1749267071449,-780.25,0.00027561,5]
[364838228,1749267071459,-201.193326,0.00027561,7]
[364838229,1749267071469,-480.0,0.00027561,5]
[364838230,1749267071478,-1450.59,0.00027561,5]
[364838231,1749267071488,-201.193326,0.00027561,7]
[364838232,1749267071497,-480.0,0.00027561,5]
[364838233,1749267071506,-498.63197829,0.00027561,5]
[364838234,1749267071516,-201.193326,0.00027561,7]
[364838235,1749267071526,-166.017389,0.00027561,7]
[364838236,1749267071536,-201.193326,0.00027561,7]
[364838237,1749267071546,-732.27,0.00027561,5]
[364838238,1749267071556,-166.017389,0.00027561,7]
[364838239,1749267071567,-6110.32,0.00027561,5]
[364838240,1749267071576,-345.52919244,0.00027561,5]
[364838241,1749267071586,-1271.75,0.00027561,5]
[364838242,1749267071596,-961.5,0.00027561,5]
[364838243,1749267071606,-480.0,0.00027561,5]
[364838244,1749267071616,-480.0,0.00027561,5]
[364838245,1749267071626,-3258.93,0.00027561,5]
[364838246,1749267071635,-166.017389,0.00027561,7]
[364838247,1749267071644,-777.55,0.00027561,5]
[364838248,1749267071653,-2623.17,0.00027561,5]
[364838249,1749267071662,-480.0,0.00027561,5]
[364838250,1749267071671,-166.017389,0.00027561,7]
[364838251,1749267071681,-480.0,0.00027561,5]
[364838252,1749267071690,-480.0,0.00027561,5]
[364838253,1749267071700,-480.0,0.00027561,5]
[364838254,1749267071711,-480.0,0.00027561,5]
[364838255,1749267071722,-480.0,0.00027561,5]
[364838256,1749267071731,-734.71,0.00027561,5]
[364838257,1749267071743,-1458.57,0.00027561,5]
[364838258,1749267071752,-571.8,0.00027561,5]
[364838259,1749267071761,-480.0,0.00027561,5]
[364838260,1749267071771,-1093.12,0.00027561,5]
[364838261,1749267071781,-855.47,0.00027561,5]
[364838262,1749267071790,-480.0,0.00027561,5]
[364838263,1749267071800,-480.0,0.00027561,5]
[364838264,1749267071809,-480.0,0.00027561,5]
[364838265,1749267071819,-151.0,0.00027561,7]
[364838266,1749267071827,-151.0,0.00027561,7]
[364838267,1749267071837,-480.0,0.00027561,5]
[364838268,1749267071847,-524.34401014,0.00027561,5]
[364838269,1749267071856,-480.0,0.00027561,5]
[364838270,1749267071866,-1675.33,0.00027561,5]
[364838271,1749267071875,-1219.17,0.00027561,5]
[364838272,1749267071884,-480.0,0.00027561,5]
[364838273,1749267071894,-480.0,0.00027561,5]
[364838274,1749267071903,-490.86418564,0.00027561,5]
[364838275,1749267071912,-480.0,0.00027561,5]
[364838276,1749267071922,-480.0,0.00027561,5]
[364838277,1749267071932,-496.04183179,0.00027561,5]
[364838278,1749267071941,-5339.54,0.00027561,5]
[364838279,1749267071950,-1143.16,0.00027561,5]
[364838280,1749267071960,-1392.55,0.00027561,5]
[364838281,1749267071969,-480.0,0.00027561,5]
[364838282,1749267071993,-480.0,0.00027561,5]
[364838283,1749267072004,-480.0,0.00027561,5]
[364838284,1749267072015,-2115.0,0.00027561,5]
[364838285,1749267072025,-480.0,0.00027561,5]
[364838286,1749267072036,-3704.48,0.00027561,5]
[364838287,1749267072047,-484.57333225,0.00027561,5]
[364838288,1749267072058,-3855.85,0.00027561,5]
[364838289,1749267072070,-480.0,0.00027561,5]
[364838290,1749267072081,-480.0,0.00027561,5]
[364838291,1749267072092,-1529.93,0.00027561,5]
[364838292,1749267072102,-480.0,0.00027561,5]
[364838293,1749267072113,-749.45,0.00027561,5]
[364838294,1749267072123,-480.0,0.00027561,5]
[364838295,1749267072133,-480.0,0.00027561,5]
[364838296,1749267072143,-480.0,0.00027561,5]
[364838297,1749267072153,-480.0,0.00027561,5]
[364838298,1749267072164,-480.0,0.00027561,5]
[364838299,1749267072174,-1927.59,0.00027561,5]
[364838300,1749267072184,-480.0,0.00027561,5]
[364838301,1749267072194,-480.0,0.00027561,5]
[364838302,1749267072204,-480.0,0.00027561,5]
[364838303,1749267072214,-480.0,0.00027561,5]
[364838304,1749267072225,-716.74,0.00027561,5]
[364838305,1749267072235,-737.46,0.00027561,5]
[364838306,1749267072245,-480.0,0.00027561,5]
[364838307,1749267072255,-1806.88,0.00027561,5]
[364838308,1749267072265,-687.89,0.00027561,5]
[364838309,1749267072275,-480.0,0.00027561,5]
[364838310,1749267072286,-1753.76,0.00027561,5]
[364838311,1749267072295,-296.693264,0.00027561,7]
[364838312,1749267072305,-296.693264,0.00027561,7]
[364838313,1749267072316,-480.0,0.00027561,5]
[364838314,1749267072326,-157.374065,0.00027561,7]
[364838315,1749267072336,-494.08,0.00027561,5]
[364838316,1749267072346,-296.693264,0.00027561,7]
[364838317,1749267072356,-1122.69,0.00027561,5]
[364838318,1749267072367,-480.0,0.00027561,5]
[364838319,1749267072376,-296.693264,0.00027561,7]
[364838320,1749267072387,-12535.73,0.00027561,5]
[364838321,1749267072397,-603.55255205,0.00027561,5]
[364838322,1749267072407,-1414.74,0.00027561,5]
[364838323,1749267072418,-10413.24,0.00027561,5]
[364838324,1749267072435,-480.0,0.00027561,5]
[364838325,1749267072445,-480.0,0.00027561,5]
[364838326,1749267072456,-998.9,0.00027561,5]
[364838327,1749267072466,-521.13,0.00027561,5]
[364838328,1749267072477,-480.0,0.00027561,5]
[364838329,1749267072487,-1993.68,0.00027561,5]
[364838330,1749267072498,-518.65,0.00027561,5]
[364838331,1749267072508,-480.0,0.00027561,5]
[364838332,1749267072519,-4322.98,0.00027561,5]
[364838333,1749267072530,-1625.54,0.00027561,5]
[364838334,1749267072542,-633.62,0.00027561,5]
[364838335,1749267072553,-480.0,0.00027561,5]
[364838336,1749267072567,-480.0,0.00027561,5]
[364838337,1749267072578,-528.49627371,0.00027561,5]
[364838338,1749267072588,-757.09,0.00027561,5]
[364838339,1749267072599,-1721.85,0.00027561,5]
[364838340,1749267072610,-151.0,0.00027561,7]
[364838341,1749267072620,-480.0,0.00027561,5]
[364838342,1749267072631,-513.52,0.00027561,5]
[364838343,1749267072642,-151.0,0.00027561,7]
[364838344,1749267072652,-151.0,0.00027561,7]
[364838345,1749267072662,-151.0,0.00027561,7]
[364838346,1749267072673,-2227.22,0.00027561,5]
[364838347,1749267072684,-480.0,0.00027561,5]
[364838348,1749267072694,-1423.351715,0.00027561,7]
[364838349,1749267072704,-1423.351715,0.00027561,7]
[364838350,1749267072715,-151.0,0.00027561,7]
[364838351,1749267072726,-151.0,0.00027561,7]
[364838352,1749267072736,-480.0,0.00027561,5]
[364838353,1749267072746,-1423.351715,0.00027561,7]
[364838354,1749267072757,-1423.351715,0.00027561,7]
[364838355,1749267072766,-1444.88,0.00027561,5]
[364838356,1749267072776,-719.02,0.00027561,5]
[364838357,1749267072786,-480.0,0.00027561,5]
[364838358,1749267072796,-665.9,0.00027561,5]
[364838359,1749267072806,-658.17,0.00027561,5]
[364838360,1749267072815,-3612.7,0.00027561,5]
[364838361,1749267072825,-480.0,0.00027561,5]
[364838362,1749267072835,-1491.43,0.00027561,5]
[364838363,1749267072845,-1125.11,0.00027561,5]
[364838364,1749267072855,-3750.22,0.00027561,5]
[364838365,1749267073150,-518.53857428,0.00027561,5]
[364838366,1749267073184,-480.0,0.00027561,5]
[364838367,1749267073194,-658.72,0.00027561,5]
[364838368,1749267073204,-697.95,0.00027561,5]
[364838369,1749267073219,-480.0,0.00027561,5]
[364838370,1749267073228,-508.32764207,0.00027561,5]
[364838371,1749267073239,-590.0,0.00027561,5]
[364838372,1749267073248,-480.0,0.00027561,5]
[364838373,1749267073259,-151.0,0.00027561,7]
[364838374,1749267073268,-151.0,0.00027561,7]
[364838375,1749267073278,-480.0,0.00027561,2]
[364838376,1749267073288,-480.0,0.00027561,5]
[364838377,1749267073298,-1066.78,0.00027561,5]
[364838378,1749267073308,-480.0,0.00027561,5]
[364838379,1749267073319,-1440.45,0.00027561,5]
[364838380,1749267073329,-540.21917309,0.00027561,5]
[364838381,1749267073339,-151.0,0.00027561,7]
[364838382,1749267073348,-151.0,0.00027561,7]
[364838383,1749267073359,-151.0,0.00027561,7]
[364838384,1749267073368,-16410.82,0.00027561,5]
[364838385,1749267073378,-151.0,0.00027561,7]
[364838386,1749267073388,-2031.28,0.00027561,5]
[364838387,1749267073398,-480.0,0.00027561,5]
[364838388,1749267073408,-480.0,0.00027561,5]
[364838389,1749267073418,-480.0,0.00027561,5]
[364838390,1749267073428,-151.0,0.00027561,7]
[364838391,1749267073439,-285.117214,0.00027561,7]
[364838392,1749267073449,-1739.86,0.00027561,5]
[364838393,1749267073459,-480.0,0.00027561,5]
[364838394,1749267073469,-480.0,0.00027561,5]
[364838395,1749267073480,-871.81,0.00027561,5]
[364838396,1749267073491,-241.400042,0.00027561,7]
[364838397,1749267073501,-925.02,0.00027561,5]
[364838398,1749267073511,-241.400042,0.00027561,7]
[364838399,1749267073520,-642.18,0.00027561,5]
[364838400,1749267073531,-480.0,0.00027561,5]
[364838401,1749267073541,-480.0,0.00027561,5]
[364838402,1749267073551,-229.65088964,0.00027561,5]
[364838403,1749267073562,-241.400042,0.00027561,7]
[364838404,1749267073572,-3452.23,0.00027561,5]
[364838405,1749267073582,-241.400042,0.00027561,7]
[364838406,1749267073592,-1447.7,0.00027561,5]
[364838407,1749267073603,-980.64,0.00027561,5]
[364838408,1749267073614,-482.90756565,0.00027561,5]
[364838409,1749267073624,-1182.54,0.00027561,5]
[364838410,1749267073635,-480.0,0.00027561,5]
[364838411,1749267073646,-480.0,0.00027561,5]
[364838412,1749267073666,-672.79,0.00027561,5]
[364838413,1749267073680,-386.78537358,0.00027561,5]
[364838414,1749267073692,-480.0,0.00027561,5]
[364838415,1749267073703,-563.87939294,0.00027561,5]
[364838416,1749267073714,-1741.11,0.00027561,5]
[364838417,1749267073724,-151.0,0.00027561,7]
[364838418,1749267073734,-151.0,0.00027561,7]
[364838419,1749267073746,-480.0,0.00027561,5]
[364838420,1749267073757,-480.0,0.00027561,5]
[364838421,1749267073768,-1748.83,0.00027561,5]
[364838422,1749267073778,-501.31113027,0.00027561,5]
[364838423,1749267073789,-2996.31,0.00027561,5]
[364838424,1749267073800,-816.17,0.00027561,5]
[364838425,1749267073811,-480.0,0.00027561,5]
[364838426,1749267073822,-2163.97,0.00027561,5]
[364838427,1749267073833,-165.510456,0.00027561,7]
[364838428,1749267073844,-480.0,0.00027561,5]
[364838429,1749267073856,-715.95,0.00027561,5]
[364838430,1749267073866,-480.0,0.00027561,5]
[364838431,1749267073877,-672.93,0.00027561,5]
[364838432,1749267073887,-485.16844509,0.00027561,5]
[364838433,1749267073898,-374.25215662,0.00027561,5]
[364838434,1749267073909,-480.0,0.00027561,5]
[364838435,1749267073920,-1892.42,0.00027561,5]
[364838436,1749267073931,-483.04,0.00027561,2]
[364838437,1749267073941,-480.0,0.00027561,5]
[364838438,1749267073952,-1729.01,0.00027561,5]
[364838439,1749267073963,-480.0,0.00027561,5]
[364838440,1749267073973,-4307.55,0.00027561,5]
[364838441,1749267073983,-480.0,0.00027561,5]
[364838442,1749267073997,-480.0,0.00027561,5]
[364838443,1749267074008,-480.0,0.00027561,5]
[364838444,1749267074019,-480.0,0.00027561,5]
[364838445,1749267074030,-674.63,0.00027561,5]
[364838446,1749267074041,-151.0,0.00027561,7]
[364838447,1749267074052,-151.0,0.00027561,7]
[364838448,1749267074063,-431.69480208,0.00027561,5]
[364838449,1749267074074,-508.19454957,0.00027561,5]
[364838450,1749267074084,-480.0,0.00027561,2]
[364838451,1749267074100,-480.0,0.00027561,5]
[364838452,1749267074112,-480.0,0.00027561,5]
[364838453,1749267074124,-261.759666,0.00027561,7]
[364838454,1749267074135,-891.05,0.00027561,5]
[364838455,1749267074147,-832.77,0.00027561,5]
[364838456,1749267074159,-1720.22,0.00027561,5]
[364838457,1749267074171,-897.55,0.00027561,5]
[364838458,1749267074181,-3111.73,0.00027561,5]
[364838459,1749267074192,-629.18,0.00027561,5]
[364838460,1749267074202,-480.0,0.00027561,5]
[364838461,1749267074214,-480.0,0.00027561,5]
[364838462,1749267074225,-480.0,0.00027561,5]
[364838463,1749267074237,-1505.03,0.00027561,5]
[364838464,1749267074248,-1150.03,0.00027561,5]
[364838465,1749267074259,-480.0,0.00027561,5]
[364838466,1749267074270,-172.66743277,0.00027561,5]
[364838467,1749267074281,-1925.21,0.00027561,5]
[364838468,1749267074292,-5617.32,0.00027561,5]
[364838469,1749267074302,-480.0,0.00027561,5]
[364838470,1749267074313,-480.0,0.00027561,5]
[364838471,1749267074324,-304.6,0.00027564,2]
[364838472,1749267074335,-500.0,0.0002757,2]
[364838473,1749267074347,-500.0,0.0002757,2]
[364838474,1749267074359,-500.0,0.0002757,2]
[364838475,1749267074370,-500.0,0.0002757,2]
[364838476,1749267074380,-500.0,0.00027573,5]
[364838477,1749267074392,-500.0,0.00027573,5]
[364838478,1749267074403,-500.0,0.00027573,5]
[364838479,1749267074414,-502.12382405,0.00027573,5]
[364838480,1749267074425,-500.0,0.00027573,5]
[364838481,1749267074436,-500.0,0.00027587,2]
[364838482,1749267074447,-1414.4374717,0.00027595,2]
[364838483,1749267074457,-163.931404,0.00027597,7]
[364838484,1749267074468,-151.0,0.000276,7]
[364838485,1749267074479,-345.28943,0.000276,7]
[364838486,1749267074491,-345.28943,0.000276,7]
[364838487,1749267074501,-1922.5606,0.000276,2]
[364838488,1749267074512,-301.576605,0.000276,7]
[364838489,1749267074523,-301.576605,0.000276,7]
[364838490,1749267074534,-2022.7066,0.000276,2]
[364838491,1749267074551,-1000.0,0.000276,2]
[364838492,1749267074562,-17565.56,0.000276,2]
[364838493,1749267074574,-2823.0218,0.000276,2]
[364838494,1749267074586,-11375.26523794,0.000276,2]
[364838495,1749267074596,-151.0,0.00027607,7]
[364838496,1749267074607,-151.0,0.00027607,7]
[364838497,1749267074619,-151.0,0.00027607,7]
[364838498,1749267074629,-151.0,0.00027607,7]
[364838499,1749267074640,-500.0,0.00027615,2]
[364838500,1749267074652,-788.64,0.00027625,5]
[364838501,1749267074663,-151.0,0.00027626,7]
[364838502,1749267074674,-151.0,0.00027626,7]
[364838503,1749267074684,-197.65281716,0.00027626,2]
[364838504,1749267074695,-500.0,0.00027642,2]
[364838505,1749267074706,-291.323816,0.00027644,7]
[364838506,1749267074716,-291.323816,0.00027644,7]
[364838507,1749267074727,-159.872759,0.00027644,7]
[364838508,1749267074738,-159.872759,0.00027644,7]
[364838509,1749267074749,-151.0,0.00027644,7]
[364838510,1749267074759,-151.0,0.00027644,7]
[364838511,1749267074770,-301.27,0.0002765,2]
[364838512,1749267074781,-573.52530558,0.0002767,2]
[364838513,1749267074791,-177.0,0.00027671,14]
[364838514,1749267074801,-275.0,0.00027671,14]
[364838515,1749267074812,-11375.26523794,0.00027695,2]
[364838516,1749267074822,-920.44,0.00027704,5]
[364838517,1749267074833,-151.0,0.00027706,7]
[364838518,1749267074844,-151.0,0.00027706,7]
[364838519,1749267074855,-607.976154,0.00027707,7]
[364838520,1749267074865,-607.976154,0.00027707,7]
[364838521,1749267074876,-151.0,0.00027707,7]
[364838522,1749267074886,-263.395409,0.00027707,7]
[364838523,1749267074897,-263.395409,0.00027707,7]
[364838524,1749267074907,-151.0,0.00027707,7]
[364838525,1749267074917,-151.0,0.00027707,7]
[364838526,1749267074928,-6177.2448886,0.00027707,2]
[364838527,1749267074939,-1000.0,0.00027721,5]
[364838528,1749267074949,-151.0,0.00027721,7]
[364838529,1749267074959,-151.0,0.00027721,7]
[364838530,1749267074970,-500.0,0.00027725,2]
[364838531,1749267074985,-367.04,0.00027725,2]
[364838532,1749267075000,-788.64,0.00027725,5]
[364838533,1749267075011,-788.64,0.00027725,5]
[364838534,1749267075022,-920.44,0.00027725,5]
[364838535,1749267075034,-920.44,0.00027725,5]
[364838536,1749267075044,-920.44,0.00027725,5]
[364838537,1749267075055,-920.44,0.00027725,5]
[364838538,1749267075065,-920.44,0.00027725,5]
[364838539,1749267075076,-920.55,0.00027725,5]
[364838540,1749267075088,-636.82,0.00027726,5]
[364838541,1749267075100,-151.0,0.00027726,7]
[364838542,1749267075111,-2014.532933,0.00027726,5]
[364838543,1749267075123,-1712.784714,0.00027726,5]
[364838544,1749267075134,-291.323816,0.00027726,7]
[364838545,1749267075144,-291.323816,0.00027726,7]
[364838546,1749267075155,-159.872759,0.00027726,7]
[364838547,1749267075167,-159.872759,0.00027726,7]
[364838548,1749267075177,-151.0,0.00027726,7]
[364838549,1749267075189,-151.0,0.00027726,7]
[364838550,1749267075200,-151.0,0.00027726,7]
[364838551,1749267075210,-221.448793,0.00027726,7]
[364838552,1749267075223,-189.629734,0.00027726,7]
[364838553,1749267075235,-151.0,0.00027726,7]
[364838554,1749267075246,-480.0,0.00027726,5]
[364838555,1749267075257,-480.0,0.00027726,5]
[364838556,1749267075268,-480.0,0.00027726,5]
[364838557,1749267075279,-151.0,0.00027726,7]
[364838558,1749267075289,-161.28671056,0.00027726,5]
[364838559,1749267075299,-151.0,0.00027726,7]
[364838560,1749267075310,-480.0,0.00027726,5]
[364838561,1749267075321,-607.976154,0.00027726,7]
[364838562,1749267075331,-439.28510114,0.00027726,5]
[364838563,1749267075342,-607.976154,0.00027726,7]
[364838564,1749267075353,-480.0,0.00027726,5]
[364838565,1749267075364,-616.5992571,0.00027726,5]
[364838566,1749267075375,-480.0,0.00027726,5]
[364838567,1749267075386,-480.0,0.00027726,5]
[364838568,1749267075396,-480.0,0.00027726,5]
[364838569,1749267075407,-263.395409,0.00027726,7]
[364838570,1749267075417,-480.0,0.00027726,5]
[364838571,1749267075427,-263.395409,0.00027726,7]
[364838572,1749267075437,-480.0,0.00027726,5]
[364838573,1749267075447,-480.0,0.00027726,5]
[364838574,1749267075458,-510.9642457,0.00027726,5]
[364838575,1749267075468,-480.0,0.00027726,5]
[364838576,1749267075478,-480.0,0.00027726,5]
[364838577,1749267075489,-480.0,0.00027726,5]
[364838578,1749267075500,-480.0,0.00027726,5]
[364838579,1749267075510,-480.0,0.00027726,5]
[364838580,1749267075534,-480.0,0.00027726,5]
[364838581,1749267075545,-151.0,0.00027726,7]
[364838582,1749267075556,-480.0,0.00027726,5]
[364838583,1749267075567,-480.0,0.00027726,5]
[364838584,1749267075578,-480.0,0.00027726,5]
[364838585,1749267075588,-151.0,0.00027726,7]
[364838586,1749267075599,-151.0,0.00027726,7]
[364838587,1749267075609,-197.47693233,0.00027726,5]
[364838588,1749267075620,-480.0,0.00027726,5]
[364838589,1749267075631,-363.52855532,0.00027726,5]
[364838590,1749267075641,-480.0,0.00027726,5]
[364838591,1749267075652,-480.0,0.00027726,5]
[364838592,1749267075662,-151.0,0.00027726,7]
[364838593,1749267075674,-480.0,0.00027726,5]
[364838594,1749267075685,-473.31153417,0.00027726,5]
[364838595,1749267075697,-151.0,0.00027726,7]
[364838596,1749267075709,-290.774772,0.00027726,7]
[364838597,1749267075720,-480.0,0.00027726,5]
[364838598,1749267075731,-151.0,0.00027726,7]
[364838599,1749267075743,-480.0,0.00027726,5]